fUSD/lending_fUSD_20240812
["ID","MTS","AMOUNT","RATE_DAILY","PERIOD"]
[334713151,1723497047799,-392.168585,0.00018,2]
[334713152,1723497047808,-151.0,0.00018,2]
[334713153,1723497047817,-476.526216,0.00018,2]
[334713154,1723497047826,-476.526216,0.00018,2]
[334713155,1723497047835,-151.0,0.00018,2]
[334713156,1723497047847,-151.0,0.00018,2]
[334713157,1723497047856,-151.0,0.00018,2]
[334713158,1723497047865,-151.0,0.00018,2]
[334713159,1723497047874,-150.0,0.00018,5]
[334713160,1723497047882,-363.764169,0.00018,2]
[334713161,1723497047894,-363.764169,0.00018,2]
[334713162,1723497047903,-151.0,0.00018,2]
[334713163,1723497047912,-523.22959,0.00018,2]
[334713164,1723497047921,-151.0,0.00018,2]
[334713165,1723497047931,-420.580105,0.00018,2]
[334713166,1723497047940,-420.580105,0.00018,2]
[334713167,1723497047950,-334.350081,0.00018,2]
[334713168,1723497047959,-334.350081,0.00018,2]
[334713169,1723497047968,-151.0,0.00018,2]
[334713170,1723497047977,-277.593069,0.00018,2]
[334713171,1723497047986,-277.593069,0.00018,2]
[334713172,1723497047995,-151.0,0.00018,2]
[334713173,1723497048008,-151.0,0.00018,2]
[334713174,1723497048017,-151.0,0.00018,2]
[334713175,1723497048027,-151.0,0.00018,2]
[334713176,1723497048036,-168.598719,0.00018,2]
[334713177,1723497048046,-168.598719,0.00018,2]
[334713178,1723497048055,-151.0,0.00018,2]
[334713179,1723497048064,-5039.606966,0.00018,2]
[334713180,1723497048074,-510.462519,0.00018,2]
[334713181,1723497048085,-5039.606966,0.00018,2]
[334713182,1723497048097,-1597.337465,0.00018,2]
[334713183,1723497048106,-510.462519,0.00018,2]
[334713184,1723497048115,-1597.337465,0.00018,2]
[334713185,1723497048124,-187.104539,0.00018,2]
[334713186,1723497048133,-151.0,0.00018,2]
[334713187,1723497048143,-151.0,0.00018,2]
[334713188,1723497048152,-151.0,0.00018,2]
[334713189,1723497048162,-151.377868,0.00018,2]
[334713190,1723497048171,-151.0,0.00018,2]
[334713191,1723497048180,-151.0,0.00018,2]
[334713192,1723497048189,-151.0,0.00018,2]
[334713193,1723497048199,-426.88961,0.00018,2]
[334713194,1723497048208,-426.88961,0.00018,2]
[334713195,1723497048217,-426.88961,0.00018,2]
[334713196,1723497048226,-426.88961,0.00018,2]
[334713197,1723497048235,-151.0,0.00018,2]
[334713198,1723497048245,-151.0,0.00018,2]
[334713199,1723497048255,-151.0,0.00018,2]
[334713200,1723497048264,-151.0,0.00018,2]
[334713201,1723497048273,-151.0,0.00018,2]
[334713202,1723497048283,-277.354404,0.00018,2]
[334713203,1723497048292,-151.0,0.00018,2]
[334713204,1723497048301,-151.0,0.00018,2]
[334713205,1723497048310,-151.0,0.00018,2]
[334713206,1723497048320,-151.0,0.00018,2]
[334713207,1723497048329,-151.0,0.00018,2]
[334713208,1723497048338,-151.0,0.00018,2]
[334713209,1723497048349,-151.0,0.00018,2]
[334713210,1723497048358,-151.0,0.00018,2]
[334713211,1723497048367,-151.0,0.00018,2]
[334713212,1723497048376,-151.0,0.00018,2]
[334713213,1723497048534,-151.0,0.00018,2]
[334713214,1723497048544,-151.0,0.00018,2]
[334713215,1723497048553,-150.0,0.00018014,2]
[334713216,1723497048563,-150.0,0.00018043,2]
[334713217,1723497048572,-301.66,0.0001805,2]
[334713218,1723497048580,-1051.50287412,0.00018081,2]
[334713219,1723497048592,-2000.0,0.00018082,2]
[334713220,1723497048601,-426.17811518,0.00018093,2]
[334713221,1723497048610,-650.0,0.00018106,2]
[334713222,1723497048619,-150.0,0.00018138,2]
[334713223,1723497048628,-150.0,0.0001817,2]
[334713224,1723497048637,-327.11386545,0.00018227,2]
[334713225,1723497048647,-538200.64804126,0.00018229,2]
[334713226,1723497048656,-2493.59576733,0.00018231,2]
[334713227,1723497048665,-538200.64804126,0.00018232,2]
[334713228,1723497048674,-278.47074757,0.00018232,2]
[334713229,1723497048683,-95117.41966417,0.00018232,2]
[334713230,1723497048693,-55989.74852427,0.00018233,2]
[334713231,1723497048702,-6827.67100574,0.00018234,2]
[334713232,1723497048712,-327.11386545,0.00018235,2]
[334713233,1723497048721,-4155.99294556,0.00018237,2]
[334713234,1723497048731,-278.47074757,0.00018238,2]
[334713235,1723497048739,-1518.69278214,0.00018239,2]
[334713236,1723497048749,-95117.41966417,0.0001824,2]
[334713237,1723497048758,-12384.69038427,0.00018241,2]
[334713238,1723497048767,-250.26538267,0.00018241,2]
[334713239,1723497048777,-259.10503724,0.00018242,2]
[334713240,1723497048785,-426.17811518,0.00018243,2]
[334713241,1723497048795,-55989.74852427,0.00018243,2]
[334713242,1723497048803,-259.10503724,0.00018243,2]
[334713243,1723497048812,-1518.69278214,0.00018244,2]
[334713244,1723497048822,-30707.49160993,0.00018245,2]
[334713245,1723497048831,-30707.49160993,0.00018245,2]
[334713246,1723497048841,-327.11386545,0.00018245,2]
[334713247,1723497048850,-538200.64804126,0.00018245,2]
[334713248,1723497048859,-95117.41966417,0.00018246,2]
[334713249,1723497048869,-2493.59576733,0.00018247,2]
[334713250,1723497048878,-4155.99294556,0.00018247,2]
[334713251,1723497048887,-538200.64804126,0.00018248,2]
[334713252,1723497048897,-259.10503724,0.00018248,2]
[334713253,1723497048906,-250.26538267,0.00018248,2]
[334713254,1723497048915,-327.11386545,0.00018248,2]
[334713255,1723497048924,-327.11386545,0.00018248,2]
[334713256,1723497048934,-736.82748828,0.00018249,2]
[334713257,1723497048943,-55989.74852427,0.00018249,2]
[334713258,1723497048952,-95117.41966417,0.00018249,2]
[334713259,1723497048962,-95117.41966417,0.00018249,2]
[334713260,1723497048971,-55989.74852427,0.0001825,2]
[334713261,1723497048980,-736.82748828,0.0001825,2]
[334713262,1723497048990,-4155.99294556,0.00018251,2]
[334713263,1723497049002,-250.26538267,0.00018251,2]
[334713264,1723497049012,-259.10503724,0.00018253,2]
[334713265,1723497049022,-12384.69038427,0.00018254,2]
[334713266,1723497049031,-736.82748828,0.00018254,2]
[334713267,1723497049041,-2493.59576733,0.00018255,2]
[334713268,1723497049051,-327.11386545,0.00018256,2]
[334713269,1723497049060,-30707.49160993,0.00018257,2]
[334713270,1723497049069,-1518.69278214,0.00018257,2]
[334713271,1723497049078,-2493.59576733,0.00018257,2]
[334713272,1723497049090,-4155.99294556,0.00018258,2]
[334713273,1723497049104,-250.26538267,0.00018259,2]
[334713274,1723497049113,-2493.59576733,0.00018259,2]
[334713275,1723497049123,-538200.64804126,0.0001826,2]
[334713276,1723497049132,-278.47074757,0.00018263,2]
[334713277,1723497049142,-12384.69038427,0.00018265,2]
[334713278,1723497049152,-2493.59576733,0.00018267,2]
[334713279,1723497049162,-278.47074757,0.00018268,2]
[334713280,1723497049172,-278.47074757,0.00018268,2]
[334713281,1723497049182,-736.82748828,0.00018268,2]
[334713282,1723497049192,-12384.69038427,0.00018268,2]
[334713283,1723497049203,-259.10503724,0.00018269,2]
[334713284,1723497049213,-12384.69038427,0.0001827,2]
[334713285,1723497049223,-1518.69278214,0.0001827,2]
[334713286,1723497049233,-538200.64804126,0.0001827,2]
[334713287,1723497049242,-55989.74852427,0.0001827,2]
[334713288,1723497049252,-259.10503724,0.00018271,2]
[334713289,1723497049262,-1518.69278214,0.00018271,2]
[334713290,1723497049271,-4155.99294556,0.00018272,2]
[334713291,1723497049281,-12384.69038427,0.00018272,2]
[334713292,1723497049290,-95117.41966417,0.00018272,2]
[334713293,1723497049300,-4155.99294556,0.00018273,2]
[334713294,1723497049310,-55989.74852427,0.00018274,2]
[334713295,1723497049319,-250.26538267,0.00018275,2]
[334713296,1723497049329,-12384.69038427,0.00018275,2]
[334713297,1723497049338,-250.26538267,0.00018276,2]
[334713298,1723497049352,-250.26538267,0.00018276,2]
[334713299,1723497049362,-55989.74852427,0.00018276,2]
[334713300,1723497049371,-55989.74852427,0.00018277,2]
[334713301,1723497049381,-259.10503724,0.00018278,2]
[334713302,1723497049390,-95117.41966417,0.00018279,2]
[334713303,1723497049400,-736.82748828,0.0001828,2]
[334713304,1723497049409,-30707.49160993,0.00018281,2]
[334713305,1723497049419,-4155.99294556,0.00018282,2]
[334713306,1723497049429,-327.11386545,0.00018283,2]
[334713307,1723497049439,-364132.41586508,0.00018284,2]
[334713308,1723497049831,-1540.46787033,0.00018284,2]
[334713309,1723497049848,-306.42367944,0.00018284,2]
[334713310,1723497049873,-151.0,0.000138,2]
[334713311,1723497049882,-1903.82468386,0.00018284,2]
[334713312,1723497049894,-310.24010705,0.00018284,2]
[334713313,1723497049905,-2677.50344484,0.00018284,2]
[334713314,1723497049925,-7457.2856901,0.00018284,2]
[334713315,1723497049936,-655.43194,0.00018284,2]
[334713316,1723497049952,-815.0,0.00018284,2]
[334713317,1723497050228,-179.4461029,0.0001372,2]
[334713318,1723497050238,-151.0,0.000139,2]
[334713319,1723497050248,-305.71026992,0.00014999,2]
[334713320,1723497050257,-151.0,0.0001637,2]
[334713321,1723497050266,-151.0,0.00018,2]
[334713322,1723497050275,-158402.05476056,0.00018284,2]
[334713323,1723497050284,-278.47074757,0.00018285,2]
[334713324,1723497050294,-30707.49160993,0.00018286,2]
[334713325,1723497050303,-278.47074757,0.00018286,2]
[334713326,1723497050311,-250.26538267,0.00018287,2]
[334713327,1723497050320,-4155.99294556,0.00018287,2]
[334713328,1723497050329,-36055.42235985,0.00018288,2]
[334713329,1723497050345,-502145.22568141,0.00018288,2]
[334713330,1723497050354,-736.82748828,0.00018288,2]
[334713331,1723497050364,-278.47074757,0.00018288,2]
[334713332,1723497050373,-30707.49160993,0.00018289,2]
[334713333,1723497050382,-259.10503724,0.00018289,2]
[334713334,1723497050391,-2493.59576733,0.00018289,2]
[334713335,1723497050401,-1518.69278214,0.0001829,2]
[334713336,1723497050410,-327.11386545,0.00018291,2]
[334713337,1723497050419,-1518.69278214,0.00018291,2]
[334713338,1723497050589,-736.82748828,0.00018291,2]
[334713339,1723497050600,-95117.41966417,0.00018291,2]
[334713340,1723497050610,-736.82748828,0.00018295,2]
[334713341,1723497050619,-30707.49160993,0.00018297,2]
[334713342,1723497050628,-30707.49160993,0.00018298,2]
[334713343,1723497050638,-1518.69278214,0.00018298,2]
[334713344,1723497050647,-12384.69038427,0.000183,2]
[334713345,1723497050656,-2493.59576733,0.000183,2]
[334713346,1723497050666,-402.62,0.00018315,2]
[334713347,1723497050675,-600.0,0.00018324,10]
[334713348,1723497050684,-150.0,0.00018326,2]
[334713349,1723497050693,-150.0,0.00018354,2]
[334713350,1723497050703,-334.350081,0.00018356,2]
[334713351,1723497050713,-334.350081,0.00018356,2]
[334713352,1723497050723,-277.593069,0.00018356,2]
[334713353,1723497050732,-277.593069,0.00018356,2]
[334713354,1723497050742,-151.0,0.00018356,2]
[334713355,1723497050751,-151.0,0.00018356,2]
[334713356,1723497050760,-151.0,0.00018356,2]
[334713357,1723497050769,-151.0,0.00018356,2]
[334713358,1723497050778,-168.598719,0.00018356,2]
[334713359,1723497050787,-168.598719,0.00018356,2]
[334713360,1723497050796,-151.0,0.00018356,2]
[334713361,1723497050806,-5039.606966,0.00018356,2]
[334713362,1723497050815,-510.462519,0.00018356,2]
[334713363,1723497050824,-5039.606966,0.00018356,2]
[334713364,1723497050833,-1597.337465,0.00018356,2]
[334713365,1723497050843,-510.462519,0.00018356,2]
[334713366,1723497050852,-1597.337465,0.00018356,2]
[334713367,1723497050861,-2000.0,0.00018356,2]
[334713368,1723497050871,-151.0,0.00018356,2]
[334713369,1723497050881,-151.0,0.00018356,2]
[334713370,1723497050890,-151.0,0.00018356,2]
[334713371,1723497050899,-426.88961,0.00018356,2]
[334713372,1723497050910,-426.88961,0.00018356,2]
[334713373,1723497050919,-151.0,0.00018356,2]
[334713374,1723497050928,-151.0,0.00018356,2]
[334713375,1723497050938,-151.0,0.00018356,2]
[334713376,1723497050948,-151.0,0.00018356,2]
[334713377,1723497050959,-165.495886,0.00018356,2]
[334713378,1723497050968,-151.0,0.00018356,2]
[334713379,1723497050979,-2534.68772,0.00018356,2]
[334713380,1723497050988,-600.0,0.00018373,2]
[334713381,1723497051000,-426.17811518,0.00018393,2]
[334713382,1723497051010,-495.0,0.000184,2]
[334713383,1723497051019,-216.0,0.00018435,2]
[334713384,1723497051029,-216.0,0.00018435,2]
[334713385,1723497051039,-211.0,0.00018435,2]
[334713386,1723497051049,-211.0,0.00018435,2]
[334713387,1723497051058,-211.0,0.00018435,2]
[334713388,1723497051068,-211.0,0.00018435,2]
[334713389,1723497051078,-211.0,0.00018435,2]
[334713390,1723497051087,-211.0,0.00018435,2]
[334713391,1723497051098,-211.0,0.00018435,2]
[334713392,1723497051108,-211.0,0.00018435,2]
[334713393,1723497051122,-211.0,0.00018435,2]
[334713394,1723497051131,-211.0,0.00018435,2]
[334713395,1723497051140,-211.0,0.00018435,2]
[334713396,1723497051149,-211.0,0.00018435,2]
[334713397,1723497051158,-211.0,0.00018435,2]
[334713398,1723497051168,-211.0,0.00018435,2]
[334713399,1723497051178,-211.0,0.00018435,2]
[334713400,1723497051187,-211.0,0.00018435,2]
[334713401,1723497051197,-167.0,0.00018444,2]
[334713402,1723497051206,-150.0,0.00018483,2]
[334713403,1723497051215,-150.0,0.000185,6]
[334713404,1723497051225,-1066.432429,0.000185,2]
[334713405,1723497051234,-794.0,0.00018526,2]
[334713406,1723497051243,-794.0,0.00018526,2]
[334713407,1723497051253,-426.17811518,0.00018543,2]
[334713408,1723497051262,-150.0,0.00018569,2]
[334713409,1723497051271,-150.0,0.00018593,2]
[334713410,1723497051281,-211.0133722,0.00018599,2]
[334713411,1723497051290,-2533.34431886,0.000186,2]
[334713412,1723497051302,-2000.0,0.0001863,2]
[334713413,1723497051312,-150.0,0.00018639,2]
[334713414,1723497051322,-408.35053892,0.00018654,2]
[334713415,1723497051332,-250.0,0.00018658,2]
[334713416,1723497051342,-723.87947696,0.00018659,2]
[334713417,1723497051353,-426.17811518,0.00018693,2]
[334713418,1723497051363,-169.40193675,0.0001872,2]
[334713419,1723497051372,-600.0,0.0001874,2]
[334713420,1723497051381,-662.32941893,0.0001874,2]
[334713421,1723497051390,-600.0,0.0001874,2]
[334713422,1723497051400,-150.0,0.00018784,2]
[334713423,1723497051409,-150.0,0.00018796,2]
[334713424,1723497051418,-426.17811518,0.00018843,2]
[334713425,1723497051428,-2000.0,0.00018904,2]
[334713426,1723497051438,-150.0,0.00018907,2]
[334713427,1723497051448,-835.34,0.00018911,2]
[334713428,1723497051458,-835.34,0.00018911,2]
[334713429,1723497051468,-835.34,0.00018911,2]
[334713430,1723497051477,-835.34,0.00018911,2]
[334713431,1723497051488,-835.34,0.00018911,2]
[334713432,1723497051499,-497.18,0.00018911,2]
[334713433,1723497051508,-329.78,0.00018911,2]
[334713434,1723497051518,-421.01,0.00018911,2]
[334713435,1723497051527,-421.01,0.00018911,2]
[334713436,1723497051536,-421.01,0.00018911,2]
[334713437,1723497051545,-421.01,0.00018911,2]
[334713438,1723497051555,-421.01,0.00018911,2]
[334713439,1723497051564,-421.01,0.00018911,2]
[334713440,1723497051573,-421.01,0.00018911,2]
[334713441,1723497051583,-161.11,0.00018911,2]
[334713442,1723497051592,-995.76,0.0001892,2]
[334713443,1723497051603,-150.0,0.00018952,2]
[334713444,1723497051611,-426.17811518,0.00018993,2]
[334713445,1723497051620,-2003.32038894,0.00018997,2]
[334713446,1723497051629,-398954.61636703,0.00018999,2]
[334713447,1723497051638,-150.0,0.00019,2]
[334713448,1723497051647,-1197.70543177,0.00019,2]
[334713449,1723497051656,-179.11645874,0.00019,2]
[334713450,1723497051666,-155.77438556,0.00019,2]
[334713451,1723497051675,-1001.12670621,0.00019,2]
[334713452,1723497051684,-155.10495901,0.00019,2]
[334713453,1723497051694,-1419.43500245,0.00019,5]
[334713454,1723497051703,-49300.34615773,0.00019,2]
[334713455,1723497051944,-723.413963,0.00011896,2]
[334713456,1723497051954,-236.34424982,0.00012613,2]
[334713457,1723497051963,-151.0,0.000139,2]
[334713458,1723497051972,-367.99917118,0.00018999,2]
[334713459,1723497052627,-151.0,0.00016631,2]
[334713460,1723497052636,-247.80687621,0.00018999,2]
[334713461,1723497052646,-406313.59074114,0.00019,2]
[334713462,1723497052656,-961.27203814,0.00019,2]
[334713463,1723497052668,-127129.80943109,0.00019,2]
[334713464,1723497052680,-1399.85886565,0.00019,2]
[334713465,1723497053701,-151.0,0.000138,2]
[334713466,1723497053711,-151.0,0.00018,2]
[334713467,1723497053721,-122092.76110228,0.00019,2]
[334713468,1723497053834,-4377.64503448,0.00019,2]
[334713469,1723497053845,-590.329,0.00019,2]
[334713470,1723497054310,-251.42,0.00012,2]
[334713471,1723497054320,-251.42,0.00012,2]
[334713472,1723497054329,-251.42,0.00012,2]
[334713473,1723497054338,-251.42,0.00012,2]
[334713474,1723497054348,-251.42,0.00012,2]
[334713475,1723497054361,-251.42,0.00012,2]
[334713476,1723497054370,-251.42,0.00012,2]
[334713477,1723497054379,-251.42,0.00012,2]
[334713478,1723497054388,-846.24,0.00013382,2]
[334713479,1723497054399,-411.57514238,0.00013449,2]
[334713480,1723497054410,-379.99838705,0.00013536,2]
[334713481,1723497054420,-151.0,0.000139,2]
[334713482,1723497054430,-366.260713,0.000139,2]
[334713483,1723497054441,-151.0,0.0001637,2]
[334713484,1723497054451,-366.260713,0.00016631,2]
[334713485,1723497054461,-1051.50287412,0.00017807,2]
[334713486,1723497054471,-151.0,0.00018,2]
[334713487,1723497054481,-366.260713,0.00018,2]
[334713488,1723497054491,-35747.54147745,0.00019,2]
[334713489,1723497054504,-2899.07416389,0.00019,2]
[334713490,1723497054520,-2547.92756546,0.00019,2]
[334713491,1723497054536,-251.42,0.00012,2]
[334713492,1723497054546,-1843.43587642,0.00019,2]
[334713493,1723497054557,-11651.21138074,0.00019,2]
[334713494,1723497054569,-1482.67156504,0.00019,2]
[334713495,1723497054581,-1470.7035555,0.00019,2]
[334713496,1723497054592,-3144.75596649,0.00019,2]
[334713497,1723497054608,-379.8763603,0.00019,2]
[334713498,1723497054620,-8328.27221717,0.00019,2]
[334713505,1723497123957,322.06,9.639e-05,2]
[334713514,1723497185491,252.2380186,9.639e-05,2]
[334713515,1723497185513,9747.7619814,9.639e-05,2]
[334713526,1723498084337,252.2380186,9.14e-05,2]
[334713527,1723498084359,53.7119814,9.14e-05,2]
[334713557,1723498231649,-300.0,9.799e-05,2]
[334713558,1723498231659,-205.0,9.8e-05,2]
[334713559,1723498231668,-2495.0,9.8e-05,2]
[334713560,1723498231734,-270.26587227,9.8e-05,2]
[334713561,1723498231746,-1329.28402773,9.8e-05,2]
[334713562,1723498231760,-2456.7,9.8e-05,2]
[334713563,1723498231817,-2999.0,9.8e-05,2]
[334713564,1723498231829,-19986.25394661,9.8e-05,2]
[334713565,1723498231841,-4036.76951601,9.8e-05,2]
[334713566,1723498231852,-284.06532882,9.8e-05,2]
[334713567,1723498231876,-1135.95380882,9.8e-05,2]
[334713568,1723498231887,-1442.52663221,9.8e-05,2]
[334713569,1723498231903,-9360.88529811,9.8e-05,2]
[334713570,1723498231914,-8226.5580533,9.8e-05,2]
[334713571,1723498231926,-420.98804803,9.8e-05,2]
[334713573,1723498231937,-397.82076205,9.8e-05,2]
[334713584,1723498232065,-4038.88692627,9.8e-05,2]
[334713585,1723498232076,-271.05628702,9.8e-05,2]
[334713591,1723498237807,-11495.0,9.8e-05,2]
[334713592,1723498237819,-30601.89265229,9.8e-05,2]
[334713593,1723498237963,-955.27057878,9.8e-05,2]
[334713594,1723498238044,-414.74931863,9.8e-05,2]
[334713595,1723498238130,-363.85076915,9.8e-05,2]
[334713779,1723498239907,-656.60656736,9.8e-05,2]
[334713781,1723498239920,-565.48,9.8e-05,2]
[334713796,1723498240059,-56684.49987804,9.8e-05,2]
[334713798,1723498240072,-13123.46384223,9.8e-05,2]
[334713800,1723498240141,-3768.831738,9.8e-05,2]
[334713801,1723498240153,-5984.24376834,9.8e-05,2]
[334714082,1723498242818,-6097.83191009,9.8e-05,2]
[334714084,1723498242830,-293.80853246,9.8e-05,2]
[334714086,1723498242841,-1728.53770147,9.8e-05,2]
[334714096,1723498242922,-443.4506406,9.8e-05,2]
[334714100,1723498242955,-547.5801894,9.8e-05,2]
[334714103,1723498242974,-224.48407091,9.8e-05,2]
[334714105,1723498242983,-154.21963009,0.0001,2]
[334714107,1723498242995,-395.78036991,0.0001,2]
[334714109,1723498243004,-420.0,0.00010779,2]
[334714111,1723498243017,-300.0,0.000108,3]
[334714113,1723498243026,-3027.52963009,0.000109,2]
[334714115,1723498243038,-11885.76966991,0.000109,2]
[334714117,1723498243047,-600.0,0.000109,3]
[334714119,1723498243056,-637.8204899,0.0001095,2]
[334714121,1723498243065,-6208.67509495,0.0001099,2]
[334714123,1723498243074,-151.03,0.0001099,2]
[334714125,1723498243086,-151.03,0.0001099,2]
[334714127,1723498243096,-217929.91296715,0.00011,2]
[334714130,1723498243109,-9534.45705662,0.00011,2]
[334714134,1723498243139,-1383.95848256,0.00011,2]
[334714136,1723498243150,-822.39069926,0.00011,2]
[334714139,1723498243163,-927.77,0.00011,2]
[334714406,1723498246196,-361.14764114,0.00011,2]
[334714409,1723498246208,-331.668,0.00011,2]
[334714415,1723498246258,-1553.113225,0.00011,2]
[334714417,1723498246270,-1619.0,0.00011,2]
[334714420,1723498246293,-3151.26942458,0.00011,2]
[334715146,1723498583629,308.28,9.16e-05,2]
[334715166,1723499215420,292.86,8.259e-05,2]
[334715172,1723499359349,180.0,0.00027,120]
[334715174,1723499371412,420.0,0.00025,60]
[334715189,1723499431943,-408.1992134,0.0001,2]
[334715190,1723499431955,-141.8007866,0.0001,2]
[334715191,1723499431965,-155.0,0.00010011,2]
[334715192,1723499431974,-250.0,0.00010063,2]
[334715193,1723499431983,-1333.79,0.00010185,2]
[334715194,1723499431993,-1000.0,0.0001026,2]
[334715195,1723499432002,-1802.49,0.00010264,2]
[334715196,1723499432011,-292.86,0.00010523,2]
[334715197,1723499432020,-375.6372615,0.000108,2]
[334715198,1723499432029,-500.0,0.000108,3]
[334715199,1723499432038,-400.0,0.00010882,2]
[334715200,1723499432047,-350.15,0.00010888,2]
[334715201,1723499432057,-300.0,0.00010897,2]
[334715202,1723499432066,-2255.02,0.00010898,2]
[334715203,1723499432075,-5189.37256366,0.00010899,2]
[334715204,1723499432086,-577.17401886,0.00010899,2]
[334715205,1723499432097,-595.5625,0.00010899,2]
[334715206,1723499432128,-851.58734451,0.00010899,2]
[334715207,1723499432139,-2363.32361815,0.00010899,2]
[334715208,1723499432151,-124.50995482,0.00010899,2]
[334715209,1723499432159,-1921.55004518,0.000109,2]
[334715210,1723499432794,-183.14865482,0.000109,2]
[334715211,1723499432804,-182.7281,0.000109,2]
[334715212,1723499432816,-171.50474406,0.000109,2]
[334715213,1723499432826,-3604.1128,0.000109,2]
[334715214,1723499432835,-1403.4508,0.000109,2]
[334715215,1723499432845,-1000.0,0.000109,3]
[334715216,1723499432856,-6729.96384916,0.000109,2]
[334715217,1723499432867,-382.93852184,0.000109,2]
[334715218,1723499432878,-478.1956183,0.000109,2]
[334715220,1723499432889,-4294.6717107,0.000109,2]
[334715222,1723499432899,-447.52503048,0.000109,2]
[334715224,1723499432909,-200.0,0.00010973,2]
[334715226,1723499432919,-207.56448684,0.0001099,2]
[334715229,1723499432931,-337.835,0.0001099,2]
[334715231,1723499432942,-921.66411705,0.0001099,2]
[334715233,1723499432953,-819.28,0.0001099,2]
[334715236,1723499432964,-707.07731665,0.0001099,2]
[334715238,1723499432976,-629.99914214,0.0001099,2]
[334715240,1723499432987,-935.99632994,0.0001099,2]
[334715242,1723499432999,-371.6925449,0.0001099,2]
[334715253,1723499438082,-1275.15327242,0.0001099,2]
[334715254,1723499438367,-2.41288501,0.0001099,2]
[334715255,1723499438377,-151.03,0.0001099,2]
[334715256,1723499438387,-165.8654425,0.00010997,2]
[334715257,1723499438397,-7120.95781609,0.00011,2]
[334715259,1723499438410,-300.45999998,0.00011,2]
[334715433,1723499440033,-76138.57188419,0.00011,2]
[334715435,1723499440046,-596.44324,0.00011,2]
[334715439,1723499440075,-334265.85193283,0.00011,2]
[334715442,1723499440090,-1182.80213,0.00011,2]
[334715486,1723499440766,-11509.73957567,0.00011,2]
[334715487,1723499440781,-18794.51209489,0.00011,2]
[334715489,1723499440813,-40903.31654408,0.00011,2]
[334715702,1723499443027,-8500.0,0.00011,2]
[334715708,1723499443269,-10816.61358908,0.00011,2]
[334715709,1723499443300,-17367.89828802,0.00011,2]
[334715710,1723499443312,-237564.23822191,0.00011,2]
[334715714,1723499446273,-933.17494973,0.00011,2]
[334715715,1723499446289,-917.040015,0.00011,2]
[334715716,1723499446301,-375.6372615,0.00011,2]
[334715731,1723499660343,278.02,9.009e-05,2]
[334715742,1723500131959,264.11,8.219e-05,2]
[334715743,1723500363773,-250.0,9.943e-05,2]
[334715744,1723500363796,-800.0,9.947e-05,2]
[334715745,1723500363817,-169.01,9.947e-05,2]
[334715746,1723500363837,-498.7,9.95e-05,2]
[334715747,1723500363860,-438.29,9.95e-05,2]
[334715755,1723500632153,-1005.87,9.952e-05,2]
[334715756,1723500632164,-320.0,9.952e-05,2]
[334715757,1723500632174,-360.0,9.96e-05,2]
[334715758,1723500632184,-264.11,0.00010473,2]
[334715759,1723500632194,-150.0,0.00010899,2]
[334715760,1723500632203,-300.0,0.00010899,2]
[334715761,1723500632213,-290.4654,0.000109,2]
[334715762,1723500632223,-3887.12013854,0.000109,2]
[334715763,1723500632340,-968.08911481,0.000109,2]
[334715764,1723500632353,-1868.85369803,0.000109,2]
[334715765,1723500632373,-3587.75426598,0.000109,2]
[334715767,1723500632383,-156.5197,0.000109,2]
[334715769,1723500632393,-468.58,0.00010907,2]
[334715771,1723500632403,-468.58,0.00010909,2]
[334715772,1723500632413,-468.58,0.00010912,2]
[334715773,1723500632423,-468.58,0.00010915,2]
[334715774,1723500632434,-468.58,0.00010918,2]
[334715775,1723500632444,-875.58,0.00010918,2]
[334715776,1723500632453,-1014.22,0.00010918,2]